bitfinex/quotes_BTCUSD_20250607
["timestamp","ask_amount","ask_price","bid_price","bid_amount"]
[1749291941488,0.77918293,105290.0,105280.0,0.38230924]
[1749291942330,0.79418219,105290.0,105280.0,0.38230924]
[1749291942567,0.77918219,105290.0,105280.0,0.38230924]
[1749291944294,0.77918274,105290.0,105280.0,0.38230924]
[1749291944506,0.76138577,105290.0,105280.0,0.38230924]
[1749291944904,0.77918274,105290.0,105280.0,0.38230924]
[1749291945655,0.79418468,105290.0,105280.0,0.09238924]
[1749291945883,0.79418468,105290.0,105280.0,0.38230924]
[1749291946111,0.79418467,105290.0,105280.0,0.38230924]
[1749291947041,0.79418467,105290.0,105280.0,0.38230923]
[1749291947273,0.79418451,105290.0,105280.0,0.38230923]
[1749291947755,0.77918451,105290.0,105280.0,0.38230923]
[1749291948436,0.77918749,105290.0,105280.0,0.38230923]
[1749291949343,0.76138577,105290.0,105280.0,0.38230923]
[1749291949612,0.77918749,105290.0,105280.0,0.38230923]
[1749291950261,0.79518749,105290.0,105280.0,0.38230923]
[1749291950519,0.7951889,105290.0,105280.0,0.38230923]
[1749291951117,0.7791889,105290.0,105280.0,0.38230923]
[1749291952055,0.76138577,105290.0,105280.0,0.38230923]
[1749291952460,0.77919092,105290.0,105280.0,0.38230923]
[1749291953762,0.76138577,105290.0,105280.0,0.38230922]
[1749291953970,0.77919496,105290.0,105280.0,0.38230922]
[1749291954379,0.76138577,105290.0,105280.0,0.38230922]
[1749291954786,0.77919496,105290.0,105280.0,0.38230922]
[1749291955161,0.77920372,105290.0,105280.0,0.38230922]
[1749291955791,0.74568577,105290.0,105280.0,0.38230922]
[1749291955951,0.76350372,105290.0,105280.0,0.38230922]
[1749291956860,0.74568577,105290.0,105280.0,0.38230922]
[1749291957667,0.76350372,105290.0,105280.0,0.38230922]
[1749291958425,0.74568577,105290.0,105280.0,0.38230922]
[1749291959879,0.76350664,105290.0,105280.0,0.38230922]
[1749291960083,0.74568577,105290.0,105280.0,0.38230922]
[1749291960282,0.76350664,105290.0,105280.0,0.38230922]
[1749291960498,0.74568577,105290.0,105280.0,0.38230921]
[1749291960904,0.76350664,105290.0,105280.0,0.38230921]
[1749291961197,0.74568577,105290.0,105280.0,0.38230921]
[1749291961424,0.76350654,105290.0,105280.0,0.38230921]
[1749291962403,0.74568577,105290.0,105280.0,0.38230921]
[1749291962585,0.76350644,105290.0,105280.0,0.38230921]
[1749291963346,0.76350645,105290.0,105280.0,0.38230921]
[1749291963760,0.74568577,105290.0,105280.0,0.38230921]
[1749291963961,0.76350645,105290.0,105280.0,0.38230921]
[1749291964413,0.76350645,105290.0,105280.0,0.39820921]
[1749291965650,0.76350643,105290.0,105280.0,0.39820921]
[1749291966084,0.74568577,105290.0,105280.0,0.39820921]
[1749291966274,0.76350643,105290.0,105280.0,0.39820921]
[1749291967103,0.76350652,105290.0,105280.0,0.39820921]
[1749291969014,0.7635066,105290.0,105280.0,0.39820921]
[1749291969709,0.74568577,105290.0,105280.0,0.39820921]
[1749291969917,0.7635066,105290.0,105280.0,0.39820921]
[1749291970504,0.76350673,105290.0,105280.0,0.39820921]
[1749291970703,0.74568577,105290.0,105280.0,0.39820921]
[1749291970904,0.74568577,105290.0,105280.0,0.3982092]
[1749291971124,0.76350673,105290.0,105280.0,0.3982092]
[1749291971327,0.74568577,105290.0,105280.0,0.3982092]
[1749291971623,0.76350673,105290.0,105280.0,0.3982092]
[1749291972059,0.76350698,105290.0,105280.0,0.3982092]
[1749291972625,0.74568577,105290.0,105280.0,0.3982092]
[1749291973219,0.76350698,105290.0,105280.0,0.3982092]
[1749291973377,0.76350771,105290.0,105280.0,0.3982092]
[1749291974049,0.76350785,105290.0,105280.0,0.3982092]
[1749291974251,0.74568577,105290.0,105280.0,0.3982092]
[1749291974457,0.76350785,105290.0,105280.0,0.3982092]
[1749291975117,0.76351,105290.0,105280.0,0.3982092]
[1749291976676,0.74568577,105290.0,105280.0,0.3982092]
[1749291976960,0.76351,105290.0,105280.0,0.3982092]
[1749291977638,0.74568577,105290.0,105280.0,0.3982092]
[1749291977841,0.76350905,105290.0,105280.0,0.3982092]
[1749291978279,0.77940905,105290.0,105280.0,0.38230919]
[1749291978480,0.76158577,105290.0,105280.0,0.38230919]
[1749291978687,0.77940905,105290.0,105280.0,0.38222919]
[1749291978902,0.77940933,105290.0,105280.0,0.38222919]
[1749291979111,0.76350933,105290.0,105280.0,0.38222919]
[1749291979533,1.665598,105290.0,105280.0,0.09238919]
[1749291979750,1.80728088,105290.0,105280.0,0.00366919]
[1749291979966,1.73865438,105290.0,105280.0,0.29350919]
[1749291980169,1.74533923,105290.0,105280.0,0.29350919]
[1749291980379,1.7208295,105290.0,105280.0,0.29350919]
[1749291980584,1.74533948,105290.0,105280.0,0.29350919]
[1749291980823,1.74533951,105290.0,105280.0,0.29350918]
[1749291981139,1.72751403,105290.0,105280.0,0.29350918]
[1749291981343,0.65296211,105290.0,105280.0,0.29350918]
[1749291981547,1.74533945,105290.0,105280.0,0.29350918]
[1749291981956,1.7208295,105290.0,105280.0,0.29350918]
[1749291982342,1.74533945,105290.0,105280.0,0.29250918]
[1749291982782,1.74533087,105290.0,105280.0,0.29250918]
[1749291982981,1.74530798,105290.0,105280.0,0.29250918]
[1749291983183,1.7208295,105290.0,105280.0,0.29250918]
[1749291983408,1.74530798,105290.0,105280.0,0.29250918]
[1749291983600,1.73863203,105290.0,105280.0,0.29250918]
[1749291983809,1.74530736,105290.0,105280.0,0.29250918]
[1749291984846,1.73862464,105290.0,105280.0,0.29250918]
[1749291985229,1.72750267,105290.0,105280.0,0.29250918]
[1749291985436,1.74529781,105290.0,105280.0,0.29250918]
[1749291986255,1.72750267,105290.0,105280.0,0.29250918]
[1749291986409,1.74529781,105290.0,105280.0,0.29250918]
[1749291986592,1.73862464,105290.0,105280.0,0.29250918]
[1749291986797,1.74529781,105290.0,105280.0,0.29250918]
[1749291987414,1.74529687,105290.0,105280.0,0.29250918]
[1749291988187,1.73862464,105290.0,105280.0,0.29250918]
[1749291988424,1.72750179,105290.0,105280.0,0.29250917]
[1749291988596,1.7208295,105290.0,105280.0,0.29250917]
[1749291988749,1.7386223,105290.0,105280.0,0.29250917]
[1749291988951,1.7452946,105290.0,105280.0,0.29250917]
[1749291989650,1.72750097,105290.0,105280.0,0.29250917]
[1749291989890,1.7386201,105290.0,105280.0,0.29250917]
[1749291990094,1.74529157,105290.0,105280.0,0.29250917]
[1749291990427,1.72750097,105290.0,105280.0,0.29250917]
[1749291990638,1.74529157,105290.0,105280.0,0.29250917]
[1749291990830,1.7208295,105290.0,105280.0,0.29250917]
[1749291991040,1.72959157,105290.0,105280.0,0.29250917]
[1749291991245,1.71180071,105290.0,105280.0,0.29250917]
[1749291991375,1.7051295,105290.0,105280.0,0.29250917]
[1749291991576,1.7295906,105290.0,105280.0,0.29250917]
[1749291991792,1.72291939,105290.0,105280.0,0.29250917]
[1749291992011,1.7295906,105290.0,105280.0,0.29250917]
[1749291992214,1.71180071,105290.0,105280.0,0.29250917]
[1749291992514,1.7295906,105290.0,105280.0,0.29250917]
[1749291993406,1.71180053,105290.0,105280.0,0.29250917]
[1749291993568,1.72958996,105290.0,105280.0,0.29250917]
[1749291994172,1.71180053,105290.0,105280.0,0.29250917]
[1749291994415,1.72958996,105290.0,105280.0,0.29250917]
[1749291994890,1.72958996,105290.0,105280.0,0.29250916]
[1749291995075,1.71180053,105290.0,105280.0,0.29250916]
[1749291995390,1.72958981,105290.0,105280.0,0.29250916]
[1749291995569,1.7051295,105290.0,105280.0,0.29250916]
[1749291995716,1.72958981,105290.0,105280.0,0.29250916]
[1749291995946,1.71180049,105290.0,105280.0,0.00165523]
[1749291996344,1.72958981,105290.0,105280.0,0.00165523]
[1749291996618,1.72291882,105290.0,105280.0,0.00234409]
[1749291996741,1.7295909,105290.0,105280.0,0.00234409]
[1749291996942,1.72291961,105290.0,105280.0,0.00234409]
[1749291997233,1.72291961,105290.0,105280.0,0.29214409]
[1749291997598,1.7051295,105290.0,105280.0,0.29214409]
[1749291997997,1.72291961,105290.0,105280.0,0.29214409]
[1749291998415,1.7051295,105290.0,105280.0,0.29214409]
[1749291998760,1.7136909,105290.0,105280.0,0.29214409]
[1749291999041,1.72740079,105290.0,105280.0,0.29214409]
[1749291999362,1.7207295,105290.0,105280.0,0.29214409]
[1749291999503,1.73851962,105290.0,105280.0,0.29214409]
[1749291999707,1.72929093,105290.0,105280.0,0.29214409]
[1749292000114,1.7048295,105290.0,105280.0,0.29214409]
[1749292000519,1.72262194,105290.0,105280.0,0.29214409]
[1749292001121,1.7048295,105290.0,105280.0,0.29214409]
[1749292001393,1.69590166,105290.0,105280.0,0.29214409]
[1749292001997,1.70702194,105290.0,105280.0,0.00234409]
[1749292002214,1.7136941,105290.0,105280.0,0.00234409]
[1749292002433,1.69590166,105290.0,105280.0,0.00234409]
[1749292002626,1.6892295,105290.0,105280.0,0.00234409]
[1749292003075,1.70702194,105290.0,105280.0,0.00234409]
[1749292003206,1.7136941,105290.0,105280.0,0.00234409]
[1749292003413,1.70702807,105290.0,105280.0,0.00234409]
[1749292003673,1.6892295,105290.0,105280.0,0.00234409]
[1749292003879,1.70702807,105290.0,105280.0,0.00234409]
[1749292004058,1.6892295,105290.0,105280.0,0.00234409]
[1749292004426,1.70702807,105290.0,105280.0,0.00234409]
[1749292004632,1.71370253,105290.0,105280.0,0.00234409]
[1749292004835,1.70702807,105290.0,105280.0,0.00234409]
[1749292005035,1.71370253,105290.0,105280.0,0.00234409]
[1749292005241,1.6892295,105290.0,105280.0,0.00234409]
[1749292005679,1.71370253,105290.0,105280.0,0.00234409]
[1749292005874,1.69590396,105290.0,105280.0,0.00234409]
[1749292006126,1.71370253,105290.0,105280.0,0.00234409]
[1749292006602,1.6892295,105290.0,105280.0,0.00234409]
[1749292006804,1.69590396,105290.0,105280.0,0.00234409]
[1749292007094,1.6892295,105290.0,105280.0,0.00234409]
[1749292007505,1.69591294,105290.0,105280.0,0.00234409]
[1749292007924,1.70705201,105290.0,105280.0,0.00234409]
[1749292008128,1.6892295,105290.0,105280.0,0.00234409]
[1749292008292,1.71373545,105290.0,105280.0,0.01804409]
[1749292008495,1.69591294,105290.0,105280.0,0.01804409]
[1749292009048,1.69591294,105290.0,105280.0,0.03384409]
[1749292009049,0.60681726,105290.0,105280.0,0.03384409]
[1749292009251,1.1301913,105290.0,105280.0,0.03384409]
[1749292009565,1.12350557,105290.0,105280.0,0.03384409]
[1749292010131,1.12347971,105290.0,105280.0,0.03384409]
[1749292010340,1.10568577,105290.0,105280.0,0.03384409]
[1749292010580,1.12347971,105290.0,105280.0,0.03384409]
[1749292010781,1.10568577,105290.0,105280.0,0.03384409]
[1749292011201,1.12347971,105290.0,105280.0,0.03384409]
[1749292012320,1.10568577,105290.0,105280.0,0.03384409]
[1749292014090,1.12347692,105290.0,105280.0,0.03384409]
[1749292014428,1.12347245,105290.0,105280.0,0.03384409]
[1749292014591,1.10568577,105290.0,105280.0,0.03384409]
[1749292014787,1.12347245,105290.0,105280.0,0.03384409]
[1749292014991,1.10568577,105290.0,105280.0,0.03384409]
[1749292015196,1.12347245,105290.0,105280.0,0.03384409]
[1749292015785,1.12347112,105290.0,105280.0,0.03384409]
[1749292015985,1.10568577,105290.0,105280.0,0.03384409]
[1749292016519,1.12347112,105290.0,105280.0,0.03384409]
[1749292016727,1.10568577,105290.0,105280.0,0.03384409]
[1749292017086,1.12347112,105290.0,105280.0,0.03384409]
[1749292017403,1.10568577,105290.0,105280.0,0.03384409]
[1749292018058,1.12346764,105290.0,105280.0,0.03384409]
[1749292018204,1.10568577,105290.0,105280.0,0.03384409]
[1749292018410,1.12346764,105290.0,105280.0,0.03384409]
[1749292019171,1.10568577,105290.0,105280.0,0.03384409]
[1749292019538,1.12346764,105290.0,105280.0,0.03384409]
[1749292020077,1.10568577,105290.0,105280.0,0.03384409]
[1749292020276,1.12346809,105290.0,105280.0,0.03384409]
[1749292021313,1.10568577,105290.0,105280.0,0.03384409]
[1749292021650,1.12346809,105290.0,105280.0,0.03384409]
[1749292022719,1.10568577,105290.0,105280.0,0.03384409]
[1749292023133,1.12346809,105290.0,105280.0,0.03384409]
[1749292023345,1.10568577,105290.0,105280.0,0.03384409]
[1749292023547,1.12346809,105290.0,105280.0,0.03384409]
[1749292024166,1.10568577,105290.0,105280.0,0.03384409]
[1749292024369,1.12346809,105290.0,105280.0,0.03384409]
[1749292024502,1.10568577,105290.0,105280.0,0.03384409]
[1749292024710,1.13018649,105290.0,105280.0,0.03384409]
[1749292025682,1.12350448,105290.0,105280.0,0.03384409]
[1749292025973,1.10568577,105290.0,105280.0,0.03384409]
[1749292026218,1.11236778,105290.0,105280.0,0.03384409]
[1749292026439,1.12350448,105290.0,105280.0,0.03384409]
[1749292026874,1.10568577,105290.0,105280.0,0.03384409]
[1749292027086,1.13018649,105290.0,105280.0,0.03384409]
[1749292027300,1.12350448,105290.0,105280.0,0.03384409]
[1749292027519,1.10568577,105290.0,105280.0,0.03384409]
[1749292027745,1.13018649,105290.0,105280.0,0.03384409]
[1749292027962,1.12350448,105290.0,105280.0,0.03384409]
[1749292028199,1.13018649,105290.0,105280.0,0.03384409]
[1749292028423,1.10568577,105290.0,105280.0,0.03384409]
[1749292028642,1.11236778,105290.0,105280.0,0.03384409]
[1749292028906,1.12350448,105290.0,105280.0,0.03384409]
[1749292029349,1.10568577,105290.0,105280.0,0.03384409]
[1749292029568,1.65187444,105290.0,105280.0,0.03384409]
[1749292029788,1.65855689,105290.0,105280.0,0.38058408]
[1749292030009,1.67637676,105290.0,105280.0,0.38058408]
[1749292030227,1.66969466,105290.0,105280.0,0.38058408]
[1749292030443,1.65187444,105290.0,105280.0,0.38058408]
[1749292030898,1.66969466,105290.0,105280.0,0.38058408]
[1749292031118,1.67637724,105290.0,105280.0,0.38058408]
[1749292031339,1.70741814,105290.0,105280.0,0.38058408]
[1749292031560,1.70073556,105290.0,105280.0,0.29202408]
[1749292031751,1.70741847,105290.0,105280.0,0.29202408]
[1749292031970,1.70073579,105290.0,105280.0,0.29202408]
[1749292032235,1.68291529,105290.0,105280.0,0.29202407]
[1749292032456,1.70073579,105290.0,105280.0,0.29202407]
[1749292032675,1.70741848,105290.0,105280.0,0.29202407]
[1749292032930,1.70073579,105290.0,105280.0,0.29202407]
[1749292033144,1.68291529,105290.0,105280.0,0.29202407]
[1749292033330,1.70073579,105290.0,105280.0,0.29202407]
[1749292033732,1.68291529,105290.0,105280.0,0.29202407]
[1749292033865,1.70073579,105290.0,105280.0,0.29202407]
[1749292034090,1.68291529,105290.0,105280.0,0.29202407]
[1749292034884,1.70741848,105290.0,105280.0,0.29202407]
[1749292035092,1.70741847,105290.0,105280.0,0.29202407]
[1749292035314,1.73019965,105290.0,105280.0,0.29202407]
[1749292035525,1.71237915,105290.0,105280.0,0.29202407]
[1749292035757,1.70073579,105290.0,105280.0,0.29202407]
[1749292035954,1.66641529,105290.0,105280.0,0.29202407]
[1749292036158,1.69091848,105290.0,105280.0,0.29202407]
[1749292036367,1.71370109,105290.0,105280.0,0.29202407]
[1749292036574,1.69588059,105290.0,105280.0,0.29202407]
[1749292036788,1.71370109,105290.0,105280.0,0.29202407]
[1749292036997,1.69588059,105290.0,105280.0,0.29202407]
[1749292037416,1.71370109,105290.0,105280.0,0.29202407]
[1749292037838,1.6891979,105290.0,105280.0,0.29202407]
[1749292038056,1.71370109,105290.0,105280.0,0.29202407]
[1749292038506,1.71369082,105290.0,105280.0,0.29202407]
[1749292038720,1.69088041,105290.0,105280.0,0.29202407]
[1749292038948,1.69088028,105290.0,105280.0,0.29202407]
[1749292039153,1.66641529,105290.0,105280.0,0.29202407]
[1749292039361,1.66641529,105290.0,105280.0,0.29202406]
[1749292039566,1.68420801,105290.0,105280.0,0.29202406]
[1749292039765,1.69088028,105290.0,105280.0,0.29202406]
[1749292039985,1.67308598,105290.0,105280.0,0.29202406]
[1749292040191,1.66641529,105290.0,105280.0,0.29202406]
[1749292040617,1.67308598,105290.0,105280.0,0.29202406]
[1749292041229,1.6908745,105290.0,105280.0,0.29202406]
[1749292041593,1.68420381,105290.0,105280.0,0.30782406]
[1749292041796,1.6908745,105290.0,105280.0,0.30782406]
[1749292042304,1.66641529,105290.0,105280.0,0.30782406]
[1749292042503,1.67308598,105290.0,105280.0,0.30782406]
[1749292042637,1.66641529,105290.0,105280.0,0.30782406]
[1749292042851,1.67308598,105290.0,105280.0,0.30782406]
[1749292043402,1.66641529,105290.0,105280.0,0.30782406]
[1749292043594,1.68420381,105290.0,105280.0,0.30782406]
[1749292043800,1.6908745,105290.0,105280.0,0.30782406]
[1749292043936,1.68420381,105290.0,105280.0,0.30782406]
[1749292044141,1.66641529,105290.0,105280.0,0.30782406]
[1749292044544,1.6708745,105290.0,105280.0,0.30782406]
[1749292045832,1.67091198,105290.0,105280.0,0.30782406]
[1749292046041,1.66424129,105290.0,105280.0,0.30782406]
[1749292046245,1.67092604,105290.0,105280.0,0.30782406]
[1749292046877,1.67091697,105290.0,105280.0,0.30782406]
[1749292047051,1.64641529,105290.0,105280.0,0.30782406]
[1749292047265,1.6642347,105290.0,105280.0,0.30782406]
[1749292047469,1.67091697,105290.0,105280.0,0.30782406]
[1749292047769,1.65309756,105290.0,105280.0,0.30782406]
[1749292048005,1.67091697,105290.0,105280.0,0.30782406]
[1749292048384,1.69371143,105290.0,105280.0,0.30782406]
[1749292048793,1.67589202,105290.0,105280.0,0.30782406]
[1749292048995,1.66920975,105290.0,105280.0,0.30782406]
[1749292049231,1.68702916,105290.0,105280.0,0.30782406]
[1749292049639,1.67589202,105290.0,105280.0,0.30782406]
[1749292049861,1.69371143,105290.0,105280.0,0.30782406]
[1749292050217,1.6937131,105290.0,105280.0,0.30782406]
[1749292050543,1.68703037,105290.0,105280.0,0.30782406]
[1749292051065,1.6937131,105290.0,105280.0,0.30782406]
[1749292051781,1.67589263,105290.0,105280.0,0.30782406]
[1749292051990,1.68703061,105290.0,105280.0,0.30782406]
[1749292052147,1.66920975,105290.0,105280.0,0.30782406]
[1749292052328,1.67589257,105290.0,105280.0,0.30782406]
[1749292052683,1.69371343,105290.0,105280.0,0.30782406]
[1749292052894,1.68703061,105290.0,105280.0,0.30782406]
[1749292053113,1.66920975,105290.0,105280.0,0.30782406]
[1749292053295,1.69371343,105290.0,105280.0,0.30782405]
[1749292053705,1.68703061,105290.0,105280.0,0.30782405]
[1749292053914,1.69371343,105290.0,105280.0,0.30782405]
[1749292054160,1.68703061,105290.0,105280.0,0.30782405]
[1749292054370,1.69371343,105290.0,105280.0,0.30782405]
[1749292054567,1.67589257,105290.0,105280.0,0.30782405]
[1749292054768,1.66920975,105290.0,105280.0,0.30782405]
[1749292055083,1.69371343,105290.0,105280.0,0.30782405]
[1749292055407,1.66920975,105290.0,105280.0,0.30782405]
[1749292055622,1.67589257,105290.0,105280.0,0.30774405]
[1749292055754,1.69371343,105290.0,105280.0,0.30774405]
[1749292055960,1.66920975,105290.0,105280.0,0.30774405]
[1749292056164,1.68703061,105290.0,105280.0,0.30774405]
[1749292056796,1.69371343,105290.0,105280.0,0.30774405]
[1749292057775,1.68703148,105290.0,105280.0,0.30774405]
[1749292057929,1.66920975,105290.0,105280.0,0.30774405]
[1749292058118,1.68703148,105290.0,105280.0,0.30774405]
[1749292058320,1.67589289,105290.0,105280.0,0.30774405]
[1749292058525,1.66920975,105290.0,105280.0,0.30774405]
[1749292058724,1.69371462,105290.0,105280.0,0.30774405]
[1749292059993,1.68703148,105290.0,105280.0,0.30774405]
[1749292060227,1.66920975,105290.0,105280.0,0.30774405]
[1749292060436,1.69371463,105290.0,105280.0,0.30774405]
[1749292061094,1.69371518,105290.0,105280.0,0.30774405]
[1749292061309,1.66920975,105290.0,105280.0,0.30774405]
[1749292061518,1.69371538,105290.0,105280.0,0.30774405]
[1749292062310,1.6758931,105290.0,105280.0,0.30774405]
[1749292062463,1.69371538,105290.0,105280.0,0.30774405]
[1749292062894,1.68703203,105290.0,105280.0,0.30774405]
[1749292063075,1.66920975,105290.0,105280.0,0.30774405]
[1749292063278,1.69371538,105290.0,105280.0,0.30774405]
[1749292063481,1.6758931,105290.0,105280.0,0.30774405]
[1749292063883,1.69371538,105290.0,105280.0,0.30774405]
[1749292064682,1.6758931,105290.0,105280.0,0.30774405]
[1749292064885,1.69371538,105290.0,105280.0,0.32404405]
[1749292065091,1.68703202,105290.0,105280.0,0.32404405]
[1749292065292,1.10848023,105290.0,105280.0,0.32404405]
[1749292065542,1.09236886,105290.0,105280.0,0.32404405]
[1749292065780,1.12631223,105290.0,105280.0,0.32404405]
[1749292065945,1.13299263,105290.0,105280.0,0.32404404]
[1749292066595,1.11018051,105290.0,105280.0,0.32404404]
[1749292066797,1.09236615,105290.0,105280.0,0.32404404]
[1749292067031,1.10350009,105290.0,105280.0,0.32404404]
[1749292067427,1.08568577,105290.0,105280.0,0.32404404]
[1749292067785,1.11017996,105290.0,105280.0,0.32404404]
[1749292068190,1.10349999,105290.0,105280.0,0.32404404]
[1749292068360,1.11018019,105290.0,105280.0,0.32404404]
[1749292068560,1.11018029,105290.0,105280.0,0.32404404]
[1749292068757,1.09236609,105290.0,105280.0,0.32404404]
[1749292068949,1.08568577,105290.0,105280.0,0.32404404]
[1749292069426,1.11018028,105290.0,105280.0,0.32404404]
[1749292069873,1.11018014,105290.0,105280.0,0.32404404]
[1749292070028,1.11017976,105290.0,105280.0,0.32404404]
[1749292070226,1.09236594,105290.0,105280.0,0.32404404]
[1749292070427,1.11017975,105290.0,105280.0,0.32404404]
[1749292070653,1.11017976,105290.0,105280.0,0.32404404]
[1749292070864,1.10349957,105290.0,105280.0,0.32404404]
[1749292071069,1.11017974,105290.0,105280.0,0.32404404]
[1749292071645,1.10349957,105290.0,105280.0,0.32404404]
[1749292071885,1.11017986,105290.0,105280.0,0.32404404]
[1749292072054,1.09236606,105290.0,105280.0,0.32404404]
[1749292072613,1.11018016,105290.0,105280.0,0.32404404]
[1749292072737,1.10349987,105290.0,105280.0,0.32404404]
[1749292072942,1.11018016,105290.0,105280.0,0.32404404]
[1749292073834,1.09236606,105290.0,105280.0,0.32404404]
[1749292074245,1.11018017,105290.0,105280.0,0.32404404]
[1749292075273,1.10349988,105290.0,105280.0,0.32404404]
[1749292075474,1.1035001,105290.0,105280.0,0.32404404]
[1749292076086,1.08568577,105290.0,105280.0,0.32404404]
[1749292076289,1.11018047,105290.0,105280.0,0.32404404]
[1749292076447,1.1035001,105290.0,105280.0,0.32404404]
[1749292076652,0.55731143,105290.0,105280.0,0.32404404]
[1749292076869,1.10349866,105290.0,105280.0,0.32404404]
[1749292077207,1.10349858,105290.0,105280.0,0.32404404]
[1749292077413,1.10349857,105290.0,105280.0,0.32404403]
[1749292077573,1.08568577,105290.0,105280.0,0.32404403]
[1749292077772,1.09236576,105290.0,105280.0,0.32404403]
[1749292078149,1.11017907,105290.0,105280.0,0.32404403]
[1749292078412,1.08568577,105290.0,105280.0,0.32404403]
[1749292078618,1.10349758,105290.0,105280.0,0.32404403]
[1749292078944,1.08568577,105290.0,105280.0,0.32404403]
[1749292079348,1.10349758,105290.0,105280.0,0.32404403]
[1749292080241,1.10349702,105290.0,105280.0,0.32404403]
[1749292080849,1.08568577,105290.0,105280.0,0.32404403]
[1749292081045,1.10349702,105290.0,105280.0,0.32404403]
[1749292081191,1.10349701,105290.0,105280.0,0.32404403]
[1749292081932,1.10349702,105290.0,105280.0,0.32404403]
[1749292082489,1.08568577,105290.0,105280.0,0.32404403]
[1749292082827,1.10349702,105290.0,105280.0,0.32404403]
[1749292083654,1.10349698,105290.0,105280.0,0.32404403]
[1749292084261,1.08568577,105290.0,105280.0,0.32404403]
[1749292084485,1.10349698,105290.0,105280.0,0.32404403]
[1749292084682,1.08568577,105290.0,105280.0,0.32404403]
[1749292084853,1.10349698,105290.0,105280.0,0.32404403]
[1749292085226,0.55730831,105290.0,105280.0,0.32404403]
[1749292085425,1.10349698,105290.0,105280.0,0.32404403]
[1749292085879,1.10349453,105290.0,105280.0,0.32404403]
[1749292086124,1.08568577,105290.0,105280.0,0.32404403]
[1749292086328,1.10349453,105290.0,105280.0,0.32404403]
[1749292086560,1.08568577,105290.0,105280.0,0.32404403]
[1749292086771,1.10349453,105290.0,105280.0,0.32404403]
[1749292087399,1.10349631,105290.0,105280.0,0.32404403]
[1749292087800,0.55730764,105290.0,105280.0,0.32404403]
[1749292087997,0.03685284,105290.0,105280.0,1.18509612]
[1749292088254,0.0558467,105290.0,105280.0,1.18509612]
[1749292088432,0.24579743,105290.0,105280.0,1.17559827]
[1749292088671,0.22798891,105290.0,105280.0,1.1850962]
[1749292088879,0.0368508,105290.0,105280.0,1.19459404]
[1749292089090,0.0190423,105290.0,105280.0,1.20310676]
[1749292089298,0.00954482,105290.0,105280.0,1.20310676]
[1749292089515,4.797e-05,105290.0,105280.0,1.20310676]
[1749292090203,0.01904176,105290.0,105280.0,0.89359525]
[1749292090417,0.00954473,105290.0,105280.0,1.18307525]
[1749292090634,4.797e-05,105290.0,105280.0,1.18307525]
[1749292090850,0.00954482,105290.0,105280.0,1.18307525]
[1749292091898,4.797e-05,105290.0,105280.0,1.72926392]
[1749292092354,4.797e-05,105290.0,105280.0,1.72926391]
[1749292093432,4.797e-05,105290.0,105280.0,1.74966391]
[1749292095183,4.797e-05,105290.0,105280.0,1.75266391]
[1749292095538,4.797e-05,105290.0,105280.0,1.78120591]
[1749292099538,4.797e-05,105290.0,105280.0,0.77718857]
[1749292099740,4.797e-05,105290.0,105280.0,1.86956591]
[1749292103027,4.797e-05,105290.0,105280.0,1.01498165]
[1749292103028,0.22798819,105290.0,105280.0,1.01498165]
[1749292103236,0.2089944,105290.0,105280.0,0.16287398]
[1749292103445,0.2089944,105290.0,105280.0,0.54067398]
[1749292103647,0.2089944,105290.0,105280.0,0.72109798]
[1749292103851,0.02853969,105290.0,105280.0,1.28628251]
[1749292104064,4.797e-05,105290.0,105280.0,1.83247118]
[1749292104269,0.00954473,105290.0,105280.0,1.28328251]
[1749292104488,4.797e-05,105290.0,105280.0,1.28428251]
[1749292104698,0.00954482,105290.0,105280.0,1.28428251]
[1749292105146,0.00954473,105290.0,105280.0,1.28428251]
[1749292105352,0.22798792,105290.0,105280.0,0.346796]
[1749292105560,0.03803627,105290.0,105280.0,1.28028251]
[1749292105701,0.00954473,105290.0,105280.0,1.28328251]
[1749292105897,4.797e-05,105290.0,105280.0,1.28328251]
[1749292106101,4.797e-05,105290.0,105280.0,1.29193218]
[1749292106306,4.797e-05,105290.0,105280.0,1.83812085]
[1749292113843,0.00954491,105290.0,105280.0,1.28324251]
[1749292114044,4.797e-05,105290.0,105280.0,1.82943118]
[1749292114250,4.797e-05,105290.0,105280.0,1.28324251]
[1749292114446,4.797e-05,105290.0,105280.0,1.29205582]
[1749292115353,4.797e-05,105290.0,105280.0,1.00269582]
[1749292115548,0.00954482,105290.0,105280.0,0.74582715]
[1749292115749,0.22798801,105290.0,105280.0,0.13133198]
[1749292115978,0.20899422,105290.0,105280.0,0.71801826]
[1749292116171,0.20899422,105290.0,105280.0,1.27370495]
[1749292116378,0.02853951,105290.0,105280.0,1.29270072]
[1749292116592,0.01904212,105290.0,105280.0,1.29270072]
[1749292117057,0.02853951,105290.0,105280.0,1.29270072]
[1749292117261,0.01904212,105290.0,105280.0,0.74651205]
[1749292117742,0.01904203,105290.0,105280.0,0.74651205]
[1749292118560,0.01904203,105290.0,105280.0,0.75522751]
[1749292118938,0.01904203,105290.0,105280.0,0.74651205]
[1749292119869,0.02853924,105290.0,105280.0,0.74651205]
[1749292120526,0.01904203,105290.0,105280.0,0.74651205]
[1749292121321,0.01904203,105290.0,105280.0,0.36879205]
[1749292121485,0.22798846,105290.0,105280.0,0.74651205]
[1749292121683,0.03803672,105290.0,105280.0,0.74651205]
[1749292122209,0.02853933,105290.0,105280.0,0.74651205]
[1749292125289,0.02853924,105290.0,105280.0,0.99287205]
[1749292128523,0.03803663,105290.0,105280.0,0.99287205]
[1749292128685,0.03803663,105290.0,105280.0,0.70355205]
[1749292128909,0.02853924,105290.0,105280.0,0.99287205]
[1749292129331,0.02853978,105290.0,105280.0,0.55806977]
[1749292129539,0.0190423,105290.0,105280.0,0.95478554]
[1749292129750,0.00954473,105290.0,105280.0,0.95478554]
[1749292129988,0.00954473,105290.0,105280.0,0.96998554]
[1749292130843,0.01904167,105290.0,105280.0,0.96998554]
[1749292131401,4.797e-05,105290.0,105280.0,1.53117709]
[1749292131627,0.00954473,105290.0,105280.0,1.53117709]
[1749292132790,0.00954473,105290.0,105280.0,0.98508554]
[1749292133187,4.797e-05,105290.0,105280.0,1.53117709]
[1749292137266,4.797e-05,105290.0,105280.0,1.53113431]
[1749292138512,4.797e-05,105290.0,105280.0,2.07718308]
[1749292138686,4.797e-05,105290.0,105280.0,1.53113431]
[1749292140527,0.00954482,105290.0,105280.0,1.53113431]
[1749292140732,4.797e-05,105290.0,105280.0,1.53113431]
[1749292141441,0.00954473,105290.0,105280.0,1.53113431]
[1749292141656,0.00954473,105290.0,105280.0,0.98508554]
[1749292141856,0.00954473,105290.0,105280.0,1.53113431]
[1749292143036,4.797e-05,105290.0,105280.0,1.53113431]
[1749292145681,0.00954482,105290.0,105280.0,1.53113431]
[1749292146025,4.797e-05,105290.0,105280.0,1.53113431]
[1749292146776,0.01904185,105290.0,105280.0,1.12311431]
[1749292146994,4.797e-05,105290.0,105280.0,1.50075431]
[1749292147137,0.00954482,105290.0,105280.0,1.53275431]
[1749292147342,0.00954473,105290.0,105280.0,1.53275431]
[1749292147573,4.797e-05,105290.0,105280.0,1.53275431]
[1749292155150,0.0285396,105290.0,105280.0,0.63693157]
[1749292155360,0.22798873,105290.0,105280.0,0.94520797]
[1749292155575,0.00954491,105290.0,105280.0,0.96420383]